fUST/lending_fUST_20250610
["ID","MTS","AMOUNT","RATE_DAILY","PERIOD"]
[365147716,1749493843599,-2000.0,0.00022712,2]
[365147717,1749493843609,-2000.0,0.00022712,2]
[365147718,1749493843619,-2000.0,0.00022712,2]
[365147719,1749493843628,-2000.0,0.00022712,2]
[365147720,1749493843638,-2000.0,0.00022712,2]
[365147721,1749493843647,-1437.03958727,0.00022712,2]
[365147722,1749493843657,-500.0,0.00022738,2]
[365147723,1749493843667,-151.0,0.00022739,7]
[365147724,1749493843677,-151.0,0.00022739,7]
[365147725,1749493843687,-460.0,0.00022739,4]
[365147726,1749493843697,-151.0,0.00022739,7]
[365147727,1749493843707,-460.0,0.00022739,2]
[365147728,1749493843717,-151.0,0.00022739,7]
[365147729,1749493843726,-737.22,0.00022739,4]
[365147730,1749493843735,-460.0,0.00022739,4]
[365147731,1749493843745,-876.53,0.00022739,4]
[365147732,1749493843755,-460.0,0.00022739,4]
[365147733,1749493843765,-561.13,0.00022739,4]
[365147734,1749493843774,-1340.61,0.00022739,4]
[365147735,1749493843786,-460.0,0.00022739,4]
[365147736,1749493843795,-460.0,0.00022739,4]
[365147737,1749493843806,-1721.38,0.00022739,4]
[365147738,1749493843815,-460.0,0.00022739,4]
[365147739,1749493843825,-460.0,0.00022739,4]
[365147740,1749493843834,-947.41,0.00022739,4]
[365147741,1749493843844,-554.24,0.00022739,4]
[365147742,1749493843853,-460.0,0.00022739,4]
[365147743,1749493843863,-552.51,0.00022739,4]
[365147744,1749493843873,-660.95,0.00022739,4]
[365147745,1749493843882,-460.0,0.00022739,4]
[365147746,1749493843893,-460.0,0.00022739,4]
[365147747,1749493843903,-1138.93,0.00022739,4]
[365147748,1749493843914,-920.98,0.00022739,4]
[365147749,1749493843925,-460.0,0.00022739,4]
[365147750,1749493843935,-711.22,0.00022739,4]
[365147751,1749493843946,-460.0,0.00022739,4]
[365147752,1749493843957,-460.0,0.00022739,4]
[365147753,1749493843967,-1298.41,0.00022739,4]
[365147754,1749493843977,-460.0,0.00022739,4]
[365147755,1749493843987,-460.0,0.00022739,4]
[365147756,1749493843997,-2242.04,0.00022739,4]
[365147757,1749493844009,-460.0,0.00022739,4]
[365147758,1749493844019,-2022.98,0.00022739,4]
[365147759,1749493844029,-460.0,0.00022739,4]
[365147760,1749493844039,-460.0,0.00022739,4]
[365147761,1749493844049,-460.0,0.00022739,4]
[365147762,1749493844059,-460.0,0.00022739,4]
[365147763,1749493844069,-1866.26,0.00022739,4]
[365147764,1749493844078,-503.94,0.00022739,4]
[365147765,1749493844087,-470.21,0.00022739,4]
[365147766,1749493844206,-14992.63,0.00022739,4]
[365147767,1749493844216,-762.96,0.00022739,4]
[365147768,1749493844225,-460.0,0.00022739,4]
[365147769,1749493844235,-2141.53,0.00022739,4]
[365147770,1749493844245,-587.23,0.00022739,4]
[365147771,1749493844255,-151.0,0.00022739,7]
[365147772,1749493844264,-778.15,0.00022739,4]
[365147773,1749493844274,-553.33146511,0.00022739,4]
[365147774,1749493844284,-167.31312015,0.0002279,2]
[365147775,1749493844293,-886.0,0.000228,2]
[365147776,1749493844303,-784.69090048,0.00022831,8]
[365147777,1749493844314,-267.59102629,0.00022925,2]
[365147778,1749493844325,-500.0,0.00022925,2]
[365147779,1749493844335,-784.69090048,0.00022969,8]
[365147780,1749493844345,-500.0,0.00022992,2]
[365147781,1749493844354,-600.0,0.00022992,2]
[365147782,1749493844364,-500.0,0.00022992,2]
[365147783,1749493844374,-1000.0,0.00023,23]
[365147784,1749493844383,-1566.19,0.00023003,2]
[365147785,1749493844393,-500.0,0.00023012,2]
[365147786,1749493844402,-460.0,0.00023013,4]
[365147787,1749493844412,-460.0,0.00023013,2]
[365147788,1749493844422,-177.995772,0.00023013,7]
[365147789,1749493844431,-177.995772,0.00023013,7]
[365147790,1749493844441,-737.22,0.00023013,4]
[365147791,1749493844450,-287.634556,0.00023013,2]
[365147792,1749493844459,-287.634556,0.00023013,2]
[365147793,1749493844468,-460.0,0.00023013,4]
[365147794,1749493844478,-151.0,0.00023013,7]
[365147795,1749493844493,-876.53,0.00023013,4]
[365147796,1749493844503,-594.89813927,0.00023013,4]
[365147797,1749493844513,-561.13,0.00023013,4]
[365147798,1749493844522,-1340.61,0.00023013,4]
[365147799,1749493844532,-353.38944795,0.00023013,4]
[365147800,1749493844541,-460.0,0.00023013,4]
[365147801,1749493844551,-1721.38,0.00023013,4]
[365147802,1749493844560,-460.0,0.00023013,4]
[365147803,1749493844569,-551.47315985,0.00023013,4]
[365147804,1749493844579,-947.41,0.00023013,4]
[365147805,1749493844588,-554.24,0.00023013,4]
[365147806,1749493844598,-580.11,0.00023013,4]
[365147807,1749493844607,-552.51,0.00023013,4]
[365147808,1749493844617,-660.95,0.00023013,4]
[365147809,1749493844626,-460.0,0.00023013,4]
[365147810,1749493844636,-460.0,0.00023013,4]
[365147811,1749493844645,-1138.93,0.00023013,4]
[365147812,1749493844655,-920.98,0.00023013,4]
[365147813,1749493844665,-460.0,0.00023013,4]
[365147814,1749493844674,-711.22,0.00023013,4]
[365147815,1749493844683,-460.0,0.00023013,4]
[365147816,1749493844693,-460.0,0.00023013,4]
[365147817,1749493844703,-1298.41,0.00023013,4]
[365147818,1749493844713,-460.0,0.00023013,4]
[365147819,1749493844723,-460.0,0.00023013,4]
[365147820,1749493844735,-2242.04,0.00023013,4]
[365147821,1749493844744,-460.0,0.00023013,4]
[365147822,1749493844754,-2022.98,0.00023013,4]
[365147823,1749493844763,-460.0,0.00023013,4]
[365147824,1749493844773,-460.0,0.00023013,4]
[365147825,1749493844782,-460.0,0.00023013,4]
[365147826,1749493844791,-460.0,0.00023013,4]
[365147827,1749493844801,-1866.26,0.00023013,4]
[365147828,1749493844810,-503.94,0.00023013,4]
[365147829,1749493844819,-470.21,0.00023013,4]
[365147830,1749493844828,-14992.63,0.00023013,4]
[365147831,1749493844838,-762.96,0.00023013,4]
[365147832,1749493844847,-460.0,0.00023013,4]
[365147833,1749493844856,-2141.53,0.00023013,4]
[365147834,1749493844866,-587.23,0.00023013,4]
[365147835,1749493844875,-778.15,0.00023013,4]
[365147836,1749493844886,-2952.7664824,0.00023058,2]
[365147837,1749493844896,-784.69090048,0.00023107,8]
[365147838,1749493844905,-2160.0,0.00023156,2]
[365147839,1749493844915,-765.0,0.00023156,2]
[365147840,1749493844924,-287.741,0.00023156,2]
[365147841,1749493844933,-405.0,0.00023156,2]
[365147842,1749493844943,-200.0,0.0002318,7]
[365147843,1749493844952,-784.69090048,0.00023245,8]
[365147844,1749493844962,-1001.78136129,0.00023286,2]
[365147845,1749493844971,-151.0,0.00023287,7]
[365147846,1749493844981,-151.0,0.00023287,7]
[365147847,1749493844992,-151.0,0.00023287,7]
[365147848,1749493845002,-151.0,0.00023287,7]
[365147849,1749493845012,-151.0,0.00023287,7]
[365147850,1749493845021,-151.0,0.00023287,7]
[365147851,1749493845031,-460.0,0.00023287,4]
[365147852,1749493845041,-151.0,0.00023287,7]
[365147853,1749493845050,-460.0,0.00023287,2]
[365147854,1749493845060,-206.019737,0.00023287,7]
[365147855,1749493845070,-206.019737,0.00023287,7]
[365147856,1749493845079,-151.0,0.00023287,7]
[365147857,1749493845089,-737.22,0.00023287,4]
[365147858,1749493845099,-181.660591,0.00023287,7]
[365147859,1749493845109,-181.660591,0.00023287,7]
[365147860,1749493845119,-460.0,0.00023287,4]
[365147861,1749493845128,-876.53,0.00023287,4]
[365147862,1749493845139,-561.13,0.00023287,4]
[365147863,1749493845149,-1340.61,0.00023287,4]
[365147864,1749493845158,-460.0,0.00023287,4]
[365147865,1749493845168,-1721.38,0.00023287,4]
[365147866,1749493845178,-460.0,0.00023287,4]
[365147867,1749493845188,-947.41,0.00023287,4]
[365147868,1749493845198,-554.24,0.00023287,4]
[365147869,1749493845208,-552.51,0.00023287,4]
[365147870,1749493845219,-660.95,0.00023287,4]
[365147871,1749493845228,-460.0,0.00023287,4]
[365147872,1749493845237,-460.0,0.00023287,4]
[365147873,1749493845247,-1138.93,0.00023287,4]
[365147874,1749493845256,-920.98,0.00023287,4]
[365147875,1749493845266,-286.86,0.00023287,4]
[365147876,1749493845275,-711.22,0.00023287,4]
[365147877,1749493845285,-460.0,0.00023287,4]
[365147878,1749493845294,-460.0,0.00023287,4]
[365147879,1749493845303,-1298.41,0.00023287,4]
[365147880,1749493845313,-460.0,0.00023287,4]
[365147881,1749493845325,-460.0,0.00023287,4]
[365147882,1749493845335,-2242.04,0.00023287,4]
[365147883,1749493845345,-460.0,0.00023287,4]
[365147884,1749493845354,-2022.98,0.00023287,4]
[365147885,1749493845363,-225.9898967,0.00023287,4]
[365147886,1749493845373,-460.0,0.00023287,4]
[365147887,1749493845382,-460.0,0.00023287,4]
[365147888,1749493845392,-460.0,0.00023287,4]
[365147889,1749493845403,-1866.26,0.00023287,4]
[365147890,1749493845413,-503.94,0.00023287,4]
[365147891,1749493845423,-470.21,0.00023287,4]
[365147892,1749493845432,-14992.63,0.00023287,4]
[365147893,1749493845442,-762.96,0.00023287,4]
[365147894,1749493845451,-460.0,0.00023287,4]
[365147895,1749493845461,-2141.53,0.00023287,4]
[365147896,1749493845470,-587.23,0.00023287,4]
[365147897,1749493845480,-778.15,0.00023287,4]
[365147898,1749493845491,-223.0315306,0.00023302,2]
[365147899,1749493845500,-784.69090048,0.00023383,9]
[365147900,1749493845509,-500.0,0.00023444,2]
[365147901,1749493845519,-438.97473954,0.00023473,2]
[365147902,1749493845530,-151.0,0.00023473,7]
[365147903,1749493845539,-151.0,0.00023473,7]
[365147904,1749493845548,-500.0,0.00023492,2]
[365147905,1749493845558,-872.35041136,0.000235,2]
[365147906,1749493845567,-2000.0,0.000235,2]
[365147907,1749493845577,-563.181559,0.0002352,3]
[365147908,1749493845588,-784.69090048,0.00023521,9]
[365147909,1749493845598,-1000.0,0.0002354,2]
[365147910,1749493845608,-1200.0,0.0002354,2]
[365147911,1749493845617,-1000.0,0.0002356,2]
[365147912,1749493845627,-460.0,0.00023561,4]
[365147913,1749493845636,-460.0,0.00023561,2]
[365147914,1749493845645,-177.995772,0.00023561,7]
[365147915,1749493845655,-177.995772,0.00023561,7]
[365147916,1749493845664,-737.22,0.00023561,4]
[365147917,1749493845674,-287.634556,0.00023561,2]
[365147918,1749493845684,-287.634556,0.00023561,2]
[365147919,1749493845696,-460.0,0.00023561,4]
[365147920,1749493845705,-151.0,0.00023561,7]
[365147921,1749493845715,-200.0,0.00023561,4]
[365147922,1749493845724,-150.61138,0.00023561,4]
[365147923,1749493845733,-876.53,0.00023561,4]
[365147924,1749493845742,-561.13,0.00023561,4]
[365147925,1749493845752,-1340.61,0.00023561,4]
[365147926,1749493845761,-460.0,0.00023561,4]
[365147927,1749493845770,-1721.38,0.00023561,4]
[365147928,1749493845780,-460.0,0.00023561,4]
[365147929,1749493845790,-947.41,0.00023561,4]
[365147930,1749493845799,-554.24,0.00023561,4]
[365147931,1749493845808,-552.51,0.00023561,4]
[365147932,1749493845817,-660.95,0.00023561,4]
[365147933,1749493845826,-460.0,0.00023561,4]
[365147934,1749493845836,-460.0,0.00023561,4]
[365147935,1749493845845,-1138.93,0.00023561,4]
[365147937,1749493845855,-920.98,0.00023561,4]
[365147938,1749493845865,-711.22,0.00023561,4]
[365147939,1749493845874,-460.0,0.00023561,4]
[365147940,1749493845883,-460.0,0.00023561,4]
[365147941,1749493845893,-1298.41,0.00023561,4]
[365147942,1749493845902,-460.0,0.00023561,4]
[365147944,1749493845912,-460.0,0.00023561,4]
[365147945,1749493845921,-2242.04,0.00023561,4]
[365147946,1749493845930,-460.0,0.00023561,4]
[365147947,1749493845939,-2022.98,0.00023561,4]
[365147948,1749493845949,-460.0,0.00023561,4]
[365147949,1749493845958,-460.0,0.00023561,4]
[365147950,1749493845967,-460.0,0.00023561,4]
[365147951,1749493845976,-1866.26,0.00023561,4]
[365147952,1749493845986,-503.94,0.00023561,4]
[365147953,1749493845995,-470.21,0.00023561,4]
[365147954,1749493846005,-14992.63,0.00023561,4]
[365147955,1749493846015,-762.96,0.00023561,4]
[365147956,1749493846024,-460.0,0.00023561,4]
[365147957,1749493846034,-2141.53,0.00023561,4]
[365147958,1749493846043,-587.23,0.00023561,4]
[365147959,1749493846052,-778.15,0.00023561,4]
[365147960,1749493846062,-160.0,0.00023594,4]
[365147961,1749493846071,-825.45,0.000236,7]
[365147962,1749493846081,-977.0,0.00023653,2]
[365147963,1749493846091,-784.69090048,0.00023659,9]
[365147964,1749493846101,-167.31312015,0.00023688,2]
[365147965,1749493846110,-2203.06,0.000237,7]
[365147966,1749493846123,-213.08899333,0.000237,7]
[365147967,1749493846132,-729.7030954,0.00023726,2]
[365147968,1749493846142,-25883.25661757,0.0002378,5]
[365147969,1749493846152,-25097.10161725,0.00023788,2]
[365147970,1749493846214,-440.0,0.00021095,4]
[365147971,1749493846223,-610.24555412,0.00023156,2]
[365147972,1749493846312,-352.75444588,0.00023156,2]
[365147973,1749493846331,-2938.01555413,0.00023788,2]
[365147993,1749494390155,166.863686,0.00013699,2]
[365148059,1749495032725,-572.22055633,0.0001839,2]
[365148061,1749495032736,-179.83814567,0.0001938,2]
[365148063,1749495032746,-311.6502641,0.00020245,2]
[365148065,1749495032756,-207.4,0.00021079,2]
[365148067,1749495032767,-977.0,0.00021084,2]
[365148069,1749495032777,-612.19,0.00021085,3]
[365148071,1749495032787,-306.1,0.00021085,3]
[365148073,1749495032796,-153.05,0.00021085,3]
[365148075,1749495032807,-459.16,0.00021085,3]
[365148077,1749495032817,-44807.16798879,0.00021089,2]
[365148079,1749495032827,-500.0,0.00021089,2]
[365148081,1749495032836,-500.0,0.00021089,2]
[365148083,1749495032846,-500.0,0.00021089,2]
[365148085,1749495032855,-500.0,0.00021089,2]
[365148087,1749495032864,-500.0,0.00021089,2]
[365148089,1749495032873,-500.0,0.00021089,2]
[365148091,1749495032883,-500.0,0.00021089,2]
[365148093,1749495032892,-500.0,0.00021089,2]
[365148095,1749495032902,-500.0,0.00021089,2]
[365148097,1749495032911,-500.0,0.00021089,2]
[365148099,1749495032921,-414.59588258,0.00021089,2]
[365148101,1749495032930,-500.0,0.00021089,2]
[365148103,1749495032940,-500.0,0.00021089,2]
[365148105,1749495032949,-500.0,0.00021089,2]
[365148107,1749495032958,-500.0,0.00021089,2]
[365148109,1749495032967,-448.42474342,0.00021089,2]
[365148111,1749495032976,-500.0,0.00021089,2]
[365148113,1749495032986,-500.0,0.00021089,2]
[365148115,1749495032996,-439.72126762,0.00021089,2]
[365148117,1749495033005,-525.0,0.00021089,2]
[365148119,1749495033016,-500.0,0.00021089,2]
[365148121,1749495033026,-500.0,0.00021089,2]
[365148123,1749495033035,-500.0,0.00021089,2]
[365148125,1749495033045,-500.0,0.00021089,2]
[365148127,1749495033055,-595.0,0.00021089,2]
[365148129,1749495033065,-500.0,0.00021089,2]
[365148131,1749495033075,-500.0,0.00021089,2]
[365148133,1749495033086,-515.71418067,0.00021089,2]
[365148135,1749495033095,-500.0,0.00021089,2]
[365148137,1749495033106,-500.0,0.00021089,2]
[365148139,1749495033115,-500.0,0.00021089,2]
[365148141,1749495033124,-500.200148,0.00021089,2]
[365148143,1749495033134,-500.0,0.00021089,2]
[365148145,1749495033143,-500.0,0.00021089,2]
[365148147,1749495033152,-500.0,0.00021089,2]
[365148149,1749495033162,-500.0,0.00021089,2]
[365148151,1749495033171,-500.0,0.00021089,2]
[365148153,1749495033181,-500.0,0.00021089,2]
[365148155,1749495033190,-500.0,0.00021089,2]
[365148156,1749495033200,-500.0,0.00021089,2]
[365148157,1749495033210,-500.0,0.00021089,2]
[365148158,1749495033220,-500.0,0.00021089,2]
[365148159,1749495033230,-500.0,0.00021089,2]
[365148160,1749495033240,-500.0,0.00021089,2]
[365148161,1749495033250,-500.0,0.00021089,2]
[365148162,1749495033260,-500.0,0.00021089,2]
[365148163,1749495033270,-500.0,0.00021089,2]
[365148164,1749495033281,-500.0,0.00021089,2]
[365148165,1749495033292,-500.0,0.00021089,2]
[365148166,1749495033302,-500.0,0.00021089,2]
[365148167,1749495033312,-500.0,0.00021089,2]
[365148168,1749495033322,-500.0,0.00021089,2]
[365148169,1749495033333,-500.0,0.00021089,2]
[365148170,1749495033355,-500.0,0.00021089,2]
[365148171,1749495033366,-500.0,0.00021089,2]
[365148172,1749495033377,-500.0,0.00021089,2]
[365148173,1749495033387,-500.0,0.00021089,2]
[365148174,1749495033398,-500.0,0.00021089,2]
[365148176,1749495033408,-500.0,0.00021089,2]
[365148178,1749495033418,-500.0,0.00021089,2]
[365148180,1749495033428,-500.0,0.00021089,2]
[365148182,1749495033437,-203.999,0.00021093,2]
[365148184,1749495033447,-440.0,0.00021095,4]
[365148186,1749495033457,-494.68528756,0.00021095,4]
[365148187,1749495033467,-320.0,0.00021095,4]
[365148188,1749495033478,-440.0,0.00021095,4]
[365148189,1749495033489,-432.85663331,0.00021095,4]
[365148190,1749495033500,-440.0,0.00021095,4]
[365148191,1749495033510,-460.0,0.00021095,4]
[365148192,1749495033521,-645.06,0.00021095,4]
[365148193,1749495033532,-440.0,0.00021095,4]
[365148195,1749495033542,-430.0,0.00021095,4]
[365148197,1749495033552,-460.0,0.00021095,4]
[365148199,1749495033562,-395.54537874,0.00021095,4]
[365148201,1749495033573,-167.64032633,0.00021095,4]
[365148203,1749495033583,-458.92974755,0.00021095,4]
[365148205,1749495033593,-353.8115949,0.00021095,4]
[365148208,1749495033603,-393.8251541,0.00021095,4]
[365148210,1749495033613,-460.0,0.00021095,4]
[365148211,1749495033623,-460.0,0.00021095,4]
[365148214,1749495033634,-430.0,0.00021095,4]
[365148216,1749495033644,-430.0,0.00021095,4]
[365148218,1749495033654,-440.0,0.00021095,4]
[365148220,1749495033664,-430.0,0.00021095,4]
[365148222,1749495033674,-410.0,0.00021095,4]
[365148224,1749495033684,-431.75866359,0.00021095,4]
[365148226,1749495033694,-460.0,0.00021095,4]
[365148228,1749495033705,-430.0,0.00021095,4]
[365148230,1749495033714,-481.23825487,0.00021095,4]
[365148232,1749495033726,-434.20276697,0.00021095,4]
[365148234,1749495033736,-440.0,0.00021095,4]
[365148236,1749495033746,-440.0,0.00021095,4]
[365148238,1749495033756,-440.0,0.00021095,4]
[365148240,1749495033767,-346.62810943,0.00021095,4]
[365148242,1749495033776,-371.29344144,0.00021095,4]
[365148244,1749495033787,-460.0,0.00021095,2]
[365148246,1749495033798,-500.0,0.00021095,4]
[365148249,1749495033808,-500.0,0.00021095,4]
[365148251,1749495033818,-500.0,0.00021095,4]
[365148253,1749495033828,-440.0,0.00021095,4]
[365148255,1749495033838,-460.0,0.00021095,4]
[365148257,1749495033847,-430.0,0.00021095,4]
[365148259,1749495033857,-440.0,0.00021095,4]
[365148260,1749495033867,-440.0,0.00021095,4]
[365148261,1749495033877,-430.0,0.00021095,4]
[365148262,1749495033886,-430.0,0.00021095,4]
[365148263,1749495033897,-440.0,0.00021095,4]
[365148264,1749495033907,-460.0,0.00021095,4]
[365148265,1749495033917,-440.0,0.00021095,4]
[365148266,1749495033926,-460.0,0.00021095,4]
[365148267,1749495033936,-440.0,0.00021095,4]
[365148268,1749495033946,-460.0,0.00021095,4]
[365148269,1749495033956,-400.0,0.00021095,4]
[365148270,1749495033970,-296.40932798,0.00021095,4]
[365148271,1749495033980,-430.0,0.00021095,4]
[365148272,1749495033991,-320.0,0.00021095,4]
[365148273,1749495034000,-440.0,0.00021095,4]
[365148274,1749495034010,-430.0,0.00021095,4]
[365148275,1749495034020,-460.0,0.00021095,4]
[365148276,1749495034030,-460.0,0.00021095,4]
[365148277,1749495034040,-440.0,0.00021095,4]
[365148278,1749495034050,-430.0,0.00021095,4]
[365148279,1749495034060,-460.0,0.00021095,4]
[365148280,1749495034070,-430.0,0.00021095,4]
[365148281,1749495034081,-440.0,0.00021095,4]
[365148282,1749495034090,-458.20125836,0.00021095,4]
[365148283,1749495034258,-440.0,0.00021095,4]
[365148284,1749495034270,-430.0,0.00021095,4]
[365148285,1749495034281,-340.0,0.00021095,4]
[365148286,1749495034292,-420.0,0.00021095,4]
[365148287,1749495034302,-430.0,0.00021095,4]
[365148288,1749495034313,-420.0,0.00021095,4]
[365148289,1749495034323,-460.0,0.00021095,4]
[365148290,1749495034332,-353.75,0.00021095,4]
[365148291,1749495034341,-376.98678684,0.00021095,4]
[365148292,1749495034351,-440.0,0.00021095,4]
[365148293,1749495034362,-460.0,0.00021095,4]
[365148294,1749495034372,-354.25513656,0.00021095,4]
[365148295,1749495034382,-380.0,0.00021095,4]
[365148296,1749495034391,-430.0,0.00021095,4]
[365148297,1749495034401,-440.0,0.00021095,4]
[365148298,1749495034411,-440.0,0.00021095,4]
[365148299,1749495034421,-460.0,0.00021095,4]
[365148300,1749495034431,-460.0,0.00021095,4]
[365148301,1749495034441,-340.0,0.00021095,4]
[365148302,1749495034453,-440.0,0.00021095,4]
[365148303,1749495034463,-460.0,0.00021095,4]
[365148304,1749495034474,-440.0,0.00021095,4]
[365148305,1749495034483,-460.0,0.00021095,4]
[365148306,1749495034493,-176.21458317,0.00021095,4]
[365148338,1749495038805,-316.91200541,0.00020044,2]
[365148339,1749495038815,-844.85,0.00021085,10]
[365148340,1749495038825,-455.0,0.00021088,2]
[365148341,1749495038835,-225.0,0.00021088,2]
[365148342,1749495038844,-223.9682423,0.00021088,2]
[365148343,1749495038854,-500.0,0.00021088,2]
[365148344,1749495038864,-500.0,0.00021088,2]
[365148345,1749495038874,-500.0,0.00021088,2]
[365148346,1749495038884,-300.0200148,0.00021088,2]
[365148347,1749495038893,-283.78541683,0.00021095,4]
[365148348,1749495038903,-1237.36,0.00021095,4]
[365148349,1749495038913,-460.0,0.00021095,4]
[365148350,1749495038923,-541.09,0.00021095,4]
[365148351,1749495038933,-1213.24,0.00021095,4]
[365148352,1749495038942,-865.09,0.00021095,4]
[365148353,1749495038952,-430.0,0.00021095,4]
[365148354,1749495038961,-321.78,0.00021095,4]
[365148355,1749495038971,-1584.82,0.00021095,4]
[365148356,1749495038980,-460.0,0.00021095,4]
[365148357,1749495038990,-437.11489043,0.00021095,4]
[365148358,1749495038999,-440.0,0.00021095,4]
[365148359,1749495039009,-440.0,0.00021095,4]
[365148360,1749495039019,-460.0,0.00021095,4]
[365148361,1749495039029,-440.0,0.00021095,4]
[365148362,1749495039039,-448.78209747,0.00021095,4]
[365148363,1749495039048,-503.29,0.00021095,4]
[365148364,1749495039058,-460.0,0.00021095,4]
[365148365,1749495039067,-460.0,0.00021095,4]
[365148366,1749495039076,-400.0,0.00021095,4]
[365148367,1749495039085,-922.95,0.00021095,4]
[365148368,1749495039094,-440.0,0.00021095,4]
[365148369,1749495039102,-440.0,0.00021095,4]
[365148370,1749495039111,-460.0,0.00021095,4]
[365148371,1749495039121,-440.0,0.00021095,4]
[365148372,1749495039129,-460.0,0.00021095,4]
[365148373,1749495039139,-440.0,0.00021095,4]
[365148374,1749495039148,-651.73,0.00021095,4]
[365148375,1749495039157,-440.0,0.00021095,4]
[365148376,1749495039167,-446.41072766,0.00021095,4]
[365148377,1749495039176,-501.78,0.00021095,4]
[365148378,1749495039185,-440.0,0.00021095,4]
[365148379,1749495039195,-430.0,0.00021095,4]
[365148380,1749495039204,-460.0,0.00021095,4]
[365148381,1749495039214,-430.0,0.00021095,4]
[365148382,1749495039224,-559.79485408,0.00021095,4]
[365148383,1749495039234,-463.21,0.00021095,4]
[365148384,1749495039243,-440.0,0.00021095,4]
[365148385,1749495039253,-805.85,0.00021095,4]
[365148386,1749495039263,-460.0,0.00021095,4]
[365148387,1749495039272,-440.0,0.00021095,4]
[365148388,1749495039282,-430.0,0.00021095,4]
[365148389,1749495039292,-192.4162834,0.00021095,4]
[365148390,1749495039302,-337.32748788,0.00021095,4]
[365148391,1749495039311,-460.0,0.00021095,4]
[365148392,1749495039321,-440.0,0.00021095,4]
[365148393,1749495039330,-1098.47,0.00021095,4]
[365148394,1749495039340,-1136.11,0.00021095,4]
[365148395,1749495039350,-622.31,0.00021095,4]
[365148396,1749495039360,-440.0,0.00021095,4]
[365148397,1749495039370,-595.71113709,0.00021095,4]
[365148398,1749495039380,-460.0,0.00021095,4]
[365148399,1749495039389,-440.0,0.00021095,4]
[365148400,1749495039401,-460.0,0.00021095,4]
[365148401,1749495039410,-460.0,0.00021095,4]
[365148402,1749495039420,-460.0,0.00021095,4]
[365148403,1749495039430,-460.0,0.00021095,4]
[365148404,1749495039440,-430.0,0.00021095,4]
[365148405,1749495039450,-460.0,0.00021095,4]
[365148406,1749495039460,-400.0,0.00021095,4]
[365148407,1749495039470,-460.0,0.00021095,4]
[365148408,1749495039480,-440.0,0.00021095,4]
[365148409,1749495039490,-440.0,0.00021095,4]
[365148410,1749495039500,-1961.78,0.00021095,4]
[365148411,1749495039510,-477.62,0.00021095,4]
[365148412,1749495039520,-440.0,0.00021095,4]
[365148413,1749495039530,-509.21437107,0.00021095,4]
[365148414,1749495039539,-440.0,0.00021095,4]
[365148415,1749495039549,-1192.29,0.00021095,4]
[365148416,1749495039559,-460.0,0.00021095,4]
[365148417,1749495039569,-440.0,0.00021095,4]
[365148418,1749495039579,-440.0,0.00021095,4]
[365148419,1749495039589,-440.0,0.00021095,4]
[365148420,1749495039600,-430.51694996,0.00021095,4]